fUST/lending_fUST_20250206
["ID","MTS","AMOUNT","RATE_DAILY","PERIOD"]
[351798476,1738792241433,-680.14,0.00013698,2]
[351798478,1738792241443,-680.14,0.00013698,2]
[351798480,1738792241453,-680.14,0.00013698,2]
[351798482,1738792241462,-680.14,0.00013698,2]
[351798484,1738792241472,-500.0,0.00013698,2]
[351798486,1738792241485,-680.14,0.00013698,2]
[351798488,1738792241495,-680.14,0.00013698,2]
[351798490,1738792241505,-680.14,0.00013698,2]
[351798492,1738792241520,-680.14,0.00013698,2]
[351798494,1738792241530,-500.0,0.00013698,2]
[351798496,1738792241540,-680.14,0.00013698,2]
[351798498,1738792241549,-680.14,0.00013698,2]
[351798500,1738792241559,-500.0,0.00013698,2]
[351798502,1738792241568,-680.31609466,0.00013698,2]
[351798504,1738792241578,-500.0,0.00013698,2]
[351798506,1738792241588,-919.45,0.00013698,2]
[351798508,1738792241598,-988.79,0.00013698,2]
[351798510,1738792241608,-848.58,0.00013698,2]
[351798512,1738792241618,-500.0,0.00013698,2]
[351798514,1738792241627,-500.0,0.00013698,2]
[351798516,1738792241637,-500.0,0.00013698,2]
[351798518,1738792241646,-500.0,0.00013698,2]
[351798521,1738792241657,-1917.41,0.00013698,2]
[351798523,1738792241667,-500.0,0.00013698,2]
[351798540,1738792241825,-2380.73,0.00013698,2]
[351798542,1738792241835,-500.0,0.00013698,2]
[351798544,1738792241844,-500.0,0.00013698,2]
[351798546,1738792241853,-500.0,0.00013698,2]
[351798548,1738792241863,-500.0,0.00013698,2]
[351798550,1738792241872,-565.64608276,0.00013698,2]
[351798552,1738792241881,-500.0,0.00013698,2]
[351798554,1738792241891,-733.65,0.00013698,2]
[351798556,1738792241900,-530.99,0.00013698,2]
[351798558,1738792241909,-519.75081571,0.00013698,2]
[351798560,1738792241918,-854.81,0.00013698,2]
[351798562,1738792241927,-4350.63,0.00013698,2]
[351798564,1738792241936,-500.0,0.00013698,2]
[351798566,1738792241945,-500.0,0.00013698,2]
[351798568,1738792241955,-500.0,0.00013698,2]
[351798570,1738792241964,-500.0,0.00013698,2]
[351798572,1738792241973,-500.0,0.00013698,2]
[351798574,1738792241987,-500.0,0.00013698,2]
[351798576,1738792241995,-500.0,0.00013698,2]
[351798578,1738792242004,-500.0,0.00013698,2]
[351798580,1738792242014,-501.01857516,0.00013698,2]
[351798582,1738792242023,-500.0,0.00013698,2]
[351798584,1738792242033,-500.0,0.00013698,2]
[351798585,1738792242043,-500.0,0.00013698,2]
[351798587,1738792242052,-684.27,0.00013698,2]
[351798589,1738792242061,-500.0,0.00013698,2]
[351798591,1738792242070,-500.0,0.00013698,2]
[351798593,1738792242081,-284.45020118,0.00013698,2]
[351798595,1738792242090,-500.0,0.00013698,2]
[351798597,1738792242099,-500.0,0.00013698,2]
[351798599,1738792242108,-500.0,0.00013698,2]
[351798601,1738792242117,-500.0,0.00013698,2]
[351798603,1738792242127,-500.0,0.00013698,2]
[351798605,1738792242137,-500.0,0.00013698,2]
[351798607,1738792242146,-500.0,0.00013698,2]
[351798609,1738792242155,-500.0,0.00013698,2]
[351798611,1738792242164,-500.0,0.00013698,2]
[351798613,1738792242174,-500.0,0.00013698,2]
[351798615,1738792242183,-713.97,0.00013698,2]
[351798617,1738792242192,-507.35096873,0.00013698,2]
[351798619,1738792242202,-1587.73,0.00013698,2]
[351798621,1738792242212,-646.9331883,0.00013698,2]
[351798623,1738792242221,-500.0,0.00013698,2]
[351798625,1738792242232,-500.0,0.00013698,2]
[351798627,1738792242242,-1320.52,0.00013698,2]
[351798629,1738792242252,-500.0,0.00013698,2]
[351798631,1738792242262,-500.0,0.00013698,2]
[351798633,1738792242271,-500.0,0.00013698,2]
[351798635,1738792242280,-540.51566658,0.00013698,2]
[351798637,1738792242290,-500.0,0.00013698,2]
[351798639,1738792242299,-1679.54,0.00013698,2]
[351798641,1738792242309,-504.90464483,0.00013698,2]
[351798643,1738792242318,-500.0,0.00013698,2]
[351798645,1738792242328,-1062.07,0.00013698,2]
[351798647,1738792242337,-500.0,0.00013698,2]
[351798650,1738792242347,-500.0,0.00013698,2]
[351798652,1738792242356,-500.0,0.00013698,2]
[351798654,1738792242366,-500.0,0.00013698,2]
[351798656,1738792242375,-500.0,0.00013698,2]
[351798658,1738792242384,-590.72,0.00013698,2]
[351798661,1738792242394,-500.0,0.00013698,2]
[351798664,1738792242403,-500.0,0.00013698,2]
[351798667,1738792242413,-500.0,0.00013698,2]
[351798670,1738792242422,-500.0,0.00013698,2]
[351798673,1738792242432,-500.0,0.00013698,2]
[351798676,1738792242442,-500.0,0.00013698,2]
[351798679,1738792242451,-1052.83,0.00013698,2]
[351798682,1738792242461,-500.0,0.00013698,2]
[351798684,1738792242470,-500.0,0.00013698,2]
[351798685,1738792242482,-500.0,0.00013698,2]
[351798688,1738792242491,-500.0,0.00013698,2]
[351798690,1738792242501,-500.0,0.00013698,2]
[351798694,1738792242511,-500.0,0.00013698,2]
[351798696,1738792242521,-500.0,0.00013698,2]
[351798700,1738792242531,-500.0,0.00013698,2]
[351798701,1738792242540,-500.0,0.00013698,2]
[351798704,1738792242550,-669.39,0.00013698,2]
[351798705,1738792242559,-500.0,0.00013698,2]
[351798708,1738792242568,-500.0,0.00013698,2]
[351798710,1738792242578,-829.34,0.00013698,2]
[351798712,1738792242587,-500.0,0.00013698,2]
[351798714,1738792242597,-922.26,0.00013698,2]
[351798716,1738792242609,-500.0,0.00013698,2]
[351798718,1738792242619,-500.0,0.00013698,2]
[351798720,1738792242628,-500.0,0.00013698,2]
[351798721,1738792242638,-500.0,0.00013698,2]
[351798723,1738792242648,-502.58504685,0.00013698,2]
[351798725,1738792242657,-500.0,0.00013698,2]
[351798727,1738792242667,-500.0,0.00013698,2]
[351798730,1738792242677,-500.0,0.00013698,2]
[351798732,1738792242686,-500.0,0.00013698,2]
[351798734,1738792242696,-618.8,0.00013698,2]
[351798735,1738792242706,-518.82305619,0.00013698,2]
[351798738,1738792242716,-500.0,0.00013698,2]
[351798740,1738792242726,-500.0,0.00013698,2]
[351798742,1738792242738,-2722.59,0.00013698,2]
[351798744,1738792242751,-500.0,0.00013698,2]
[351798746,1738792242761,-500.0,0.00013698,2]
[351798748,1738792242770,-500.0,0.00013698,2]
[351798750,1738792242780,-500.0,0.00013698,2]
[351798752,1738792242789,-736.5,0.00013698,2]
[351798754,1738792242799,-500.0,0.00013698,2]
[351798756,1738792242808,-193.79229967,0.00013698,2]
[351798758,1738792242819,-500.0,0.00013698,2]
[351798760,1738792242829,-500.0,0.00013698,2]
[351798762,1738792242838,-500.0,0.00013698,2]
[351798764,1738792242848,-500.0,0.00013698,2]
[351798766,1738792242858,-1000.0,0.00013698,2]
[351798768,1738792242867,-500.0,0.00013698,2]
[351798770,1738792242877,-500.0,0.00013698,2]
[351798772,1738792242887,-500.0,0.00013698,2]
[351798774,1738792242896,-500.0,0.00013698,2]
[351798776,1738792242907,-500.0,0.00013698,2]
[351798778,1738792242916,-3783.28,0.00013698,2]
[351798780,1738792242926,-736.28,0.00013698,2]
[351798782,1738792242936,-500.0,0.00013698,2]
[351798784,1738792242946,-500.0,0.00013698,2]
[351798785,1738792242955,-1170.03,0.00013698,2]
[351798787,1738792242964,-500.0,0.00013698,2]
[351798790,1738792242974,-626.8495292,0.00013698,2]
[351798792,1738792242986,-500.0,0.00013698,2]
[351798793,1738792242995,-500.0,0.00013698,2]
[351798795,1738792243004,-500.0,0.00013698,2]
[351798797,1738792243013,-734.84,0.00013698,2]
[351798799,1738792243022,-3045.52,0.00013698,2]
[351798802,1738792243034,-500.0,0.00013698,2]
[351798804,1738792243044,-500.0,0.00013698,2]
[351798806,1738792243054,-544.32,0.00013698,2]
[351798808,1738792243063,-500.0,0.00013698,2]
[351798810,1738792243073,-500.0,0.00013698,2]
[351798812,1738792243082,-500.0,0.00013698,2]
[351798814,1738792243091,-505.56235276,0.00013698,2]
[351798816,1738792243100,-500.0,0.00013698,2]
[351798817,1738792243110,-500.0,0.00013698,2]
[351798819,1738792243119,-500.0,0.00013698,2]
[351798822,1738792243130,-361.19426287,0.00013698,2]
[351798824,1738792243140,-922.94,0.00013698,2]
[351798826,1738792243149,-703.22,0.00013698,2]
[351798828,1738792243159,-278.84389108,0.00013698,2]
[351798830,1738792243168,-500.0,0.00013698,2]
[351798832,1738792243177,-500.0,0.00013698,2]
[351798834,1738792243187,-500.0,0.00013698,2]
[351798835,1738792243196,-493.45439239,0.00013698,2]
[351798837,1738792243206,-12168.45,0.00013698,2]
[351798839,1738792243216,-500.0,0.00013698,2]
[351798840,1738792243226,-500.0,0.00013698,2]
[351798841,1738792243237,-500.0,0.00013698,2]
[351798842,1738792243247,-500.0,0.00013698,2]
[351798843,1738792243257,-500.0,0.00013698,2]
[351798844,1738792243267,-500.0,0.00013698,2]
[351798845,1738792243277,-500.0,0.00013698,2]
[351798846,1738792243291,-510.89,0.00013698,2]
[351798847,1738792243301,-4967.61,0.00013698,2]
[351798848,1738792243311,-500.0,0.00013698,2]
[351798849,1738792243321,-500.0,0.00013698,2]
[351798850,1738792243331,-500.0,0.00013698,2]
[351798851,1738792243341,-500.0,0.00013698,2]
[351798852,1738792243351,-500.0,0.00013698,2]
[351798853,1738792243361,-500.0,0.00013698,2]
[351798854,1738792243371,-500.0,0.00013698,2]
[351798856,1738792243380,-572.23,0.00013698,2]
[351798858,1738792243390,-500.0,0.00013698,2]
[351798860,1738792243400,-500.0,0.00013698,2]
[351798862,1738792243409,-500.0,0.00013698,2]
[351798864,1738792243419,-501.83177931,0.00013698,2]
[351798866,1738792243429,-500.0,0.00013698,2]
[351798868,1738792243438,-500.0,0.00013698,2]
[351798870,1738792243449,-500.0,0.00013698,2]
[351798872,1738792243458,-500.0,0.00013698,2]
[351798874,1738792243468,-500.0,0.00013698,2]
[351798876,1738792243478,-500.0,0.00013698,2]
[351798878,1738792243488,-500.0,0.00013698,2]
[351798880,1738792243498,-500.0,0.00013698,2]
[351798882,1738792243509,-2850.16,0.00013698,2]
[351798884,1738792243518,-500.0,0.00013698,2]
[351798886,1738792243527,-500.0,0.00013698,2]
[351798888,1738792243537,-500.0,0.00013698,2]
[351798890,1738792243547,-500.0,0.00013698,2]
[351798892,1738792243556,-8186.1,0.00013698,2]
[351798893,1738792243566,-500.0,0.00013698,2]
[351798896,1738792243576,-500.0,0.00013698,2]
[351798897,1738792243585,-500.0,0.00013698,2]
[351798899,1738792243595,-500.0,0.00013698,2]
[351798902,1738792243605,-34317.66,0.00013698,2]
[351798903,1738792243616,-6134.84,0.00013698,2]
[351798905,1738792243626,-500.0,0.00013698,2]
[351798907,1738792243635,-500.0,0.00013698,2]
[351798910,1738792243645,-500.0,0.00013698,2]
[351798911,1738792243655,-1225.16,0.00013698,2]
[351798913,1738792243665,-2341.48,0.00013698,2]
[351798915,1738792243674,-664.57,0.00013698,2]
[351798917,1738792243684,-1340.58,0.00013698,2]
[351798919,1738792243693,-500.0,0.00013698,2]
[351798921,1738792243703,-500.0,0.00013698,2]
[351798923,1738792243712,-647.71755536,0.00013698,2]
[351798925,1738792243723,-500.0,0.00013698,2]
[351798927,1738792243734,-500.0,0.00013698,2]
[351798930,1738792243743,-500.0,0.00013698,2]
[351798931,1738792243753,-500.0,0.00013698,2]
[351798933,1738792243763,-500.0,0.00013698,2]
[351798935,1738792243773,-500.0,0.00013698,2]
[351798937,1738792243783,-1886.65,0.00013698,2]
[351798939,1738792243793,-500.0,0.00013698,2]
[351798941,1738792243803,-500.0,0.00013698,2]
[351798944,1738792243813,-500.0,0.00013698,2]
[351798945,1738792243822,-500.0,0.00013698,2]
[351798948,1738792243831,-2722.54,0.00013698,2]
[351798950,1738792243841,-500.0,0.00013698,2]
[351798951,1738792243851,-500.0,0.00013698,2]
[351798953,1738792243868,-2961.29,0.00013698,2]
[351798955,1738792243880,-500.0,0.00013698,2]
[351798957,1738792243891,-651.64,0.00013698,2]
[351798959,1738792243902,-923.6,0.00013698,2]
[351798962,1738792243912,-1550.21,0.00013698,2]
[351798963,1738792243922,-241.6954866,0.00013698,2]
[351798965,1738792243932,-500.0,0.00013698,2]
[351798968,1738792243946,-890.31,0.00013698,2]
[351798970,1738792243957,-500.0,0.00013698,2]
[351798971,1738792243967,-500.0,0.00013698,2]
[351798973,1738792243978,-500.0,0.00013698,2]
[351798975,1738792243989,-500.0,0.00013698,2]
[351798977,1738792243998,-548.85,0.00013698,2]
[351798979,1738792244007,-1041.96,0.00013698,2]
[351798981,1738792244016,-500.0,0.00013698,2]
[351798983,1738792244026,-500.0,0.00013698,2]
[351798985,1738792244038,-500.0,0.00013698,2]
[351798987,1738792244047,-500.0,0.00013698,2]
[351799001,1738792244179,-519.30170467,0.00013698,2]
[351799003,1738792244189,-500.0,0.00013698,2]
[351799005,1738792244198,-500.0,0.00013698,2]
[351799007,1738792244208,-500.0,0.00013698,2]
[351799009,1738792244217,-500.0,0.00013698,2]
[351799011,1738792244228,-500.0,0.00013698,2]
[351799013,1738792244237,-301.0409529,0.00013698,2]
[351799015,1738792244247,-500.0,0.00013698,2]
[351799017,1738792244256,-500.0,0.00013698,2]
[351799019,1738792244266,-500.0,0.00013698,2]
[351799021,1738792244275,-500.0,0.00013698,2]
[351799023,1738792244285,-500.0,0.00013698,2]
[351799025,1738792244294,-1622.82,0.00013698,2]
[351799027,1738792244304,-500.0,0.00013698,2]
[351799029,1738792244315,-500.0,0.00013698,2]
[351799031,1738792244324,-500.0,0.00013698,2]
[351799033,1738792244334,-1965.34,0.00013698,2]
[351799035,1738792244343,-1965.34,0.00013698,2]
[351799037,1738792244353,-1965.34,0.00013698,2]
[351799039,1738792244363,-1965.34,0.00013698,2]
[351799041,1738792244372,-500.0,0.00013698,2]
[351799043,1738792244383,-1965.34,0.00013698,2]
[351799045,1738792244392,-500.0,0.00013698,2]
[351799047,1738792244402,-438.22386094,0.00013698,2]
[351799049,1738792244412,-1965.34,0.00013698,2]
[351799051,1738792244422,-1965.34,0.00013698,2]
[351799053,1738792244434,-1965.34,0.00013698,2]
[351799055,1738792244444,-1965.34,0.00013698,2]
[351799057,1738792244455,-1965.34,0.00013698,2]
[351799059,1738792244465,-1965.34,0.00013698,2]
[351799061,1738792244475,-500.0,0.00013698,2]
[351799063,1738792244486,-1965.34,0.00013698,2]
[351799066,1738792244496,-504.88227771,0.00013698,2]
[351799068,1738792244506,-1965.34,0.00013698,2]
[351799070,1738792244516,-1965.34,0.00013698,2]
[351799072,1738792244526,-1068.24,0.00013698,2]
[351799074,1738792244536,-1965.34,0.00013698,2]
[351799076,1738792244546,-1965.34,0.00013698,2]
[351799078,1738792244555,-1965.34,0.00013698,2]
[351799080,1738792244566,-1965.34,0.00013698,2]
[351799082,1738792244575,-500.0,0.00013698,2]
[351799084,1738792244585,-1965.34,0.00013698,2]
[351799086,1738792244595,-1965.34,0.00013698,2]
[351799088,1738792244604,-1965.34,0.00013698,2]
[351799090,1738792244614,-500.0,0.00013698,2]
[351799093,1738792244623,-1965.34,0.00013698,2]
[351799095,1738792244633,-1965.34,0.00013698,2]
[351799097,1738792244643,-1965.47,0.00013698,2]
[351799099,1738792244653,-500.0,0.00013698,2]
[351799101,1738792244663,-500.0,0.00013698,2]
[351799103,1738792244673,-500.0,0.00013698,2]
[351799105,1738792244683,-500.0,0.00013698,2]
[351799107,1738792244692,-151.0,0.00013698,2]
[351799109,1738792244701,-2419.6,0.00013698,2]
[351799111,1738792244710,-500.0,0.00013698,2]
[351799113,1738792244719,-834.91,0.00013698,2]
[351799115,1738792244729,-500.0,0.00013698,2]
[351799117,1738792244738,-500.0,0.00013698,2]
[351799119,1738792244747,-500.0,0.00013698,2]
[351799121,1738792244756,-500.0,0.00013698,2]
[351799123,1738792244766,-500.0,0.00013698,2]
[351799125,1738792244776,-500.0,0.00013698,2]
[351799127,1738792244785,-500.0,0.00013698,2]
[351799129,1738792244794,-6070.92,0.00013698,2]
[351799131,1738792244803,-1471.66,0.00013698,2]
[351799133,1738792244812,-1015.89,0.00013698,2]
[351799135,1738792244821,-606.31,0.00013698,2]
[351799137,1738792244831,-500.0,0.00013698,2]
[351799139,1738792244840,-505.44800151,0.00013698,2]
[351799141,1738792244849,-512.42,0.00013698,2]
[351799143,1738792244859,-4619.05,0.00013698,2]
[351799146,1738792244869,-2603.71,0.00013698,2]
[351799148,1738792244879,-1893.02,0.00013698,2]
[351799149,1738792244889,-1287.57,0.00013698,2]
[351799151,1738792244898,-500.0,0.00013698,2]
[351799153,1738792244908,-8304.42,0.00013698,2]
[351799155,1738792244917,-151.0,0.00013698,2]
[351799157,1738792244926,-500.0,0.00013698,2]
[351799159,1738792244935,-500.0,0.00013698,2]
[351799161,1738792244945,-534.21,0.00013698,2]
[351799163,1738792244955,-465.23924765,0.00013698,2]
[351799165,1738792244965,-5830.28,0.00013698,2]
[351799167,1738792244974,-500.0,0.00013698,2]
[351799169,1738792244987,-500.0,0.00013698,2]
[351799171,1738792244997,-500.0,0.00013698,2]
[351799173,1738792245007,-918.76,0.00013698,2]
[351799175,1738792245016,-500.0,0.00013698,2]
[351799177,1738792245027,-500.0,0.00013698,2]
[351799179,1738792245040,-500.0,0.00013698,2]
[351799181,1738792245051,-500.0,0.00013698,2]
[351799183,1738792245061,-966.23,0.00013698,2]
[351799185,1738792245071,-505.43571866,0.00013698,2]
[351799187,1738792245083,-512.9,0.00013698,2]
[351799189,1738792245093,-500.0,0.00013698,2]
[351799191,1738792245103,-151.0,0.00013698,2]
[351799193,1738792245114,-507.95164527,0.00013698,2]
[351799195,1738792245123,-500.0,0.00013698,2]
[351799197,1738792245133,-500.0,0.00013698,2]
[351799199,1738792245143,-500.0,0.00013698,2]
[351799201,1738792245152,-500.0,0.00013698,2]
[351799203,1738792245162,-500.0,0.00013698,2]
[351799205,1738792245172,-1849.9,0.00013698,2]
[351799207,1738792245181,-500.0,0.00013698,2]
[351799209,1738792245191,-500.0,0.00013698,2]
[351799212,1738792245205,-521.34,0.00013698,2]
[351799215,1738792245223,-500.0,0.00013698,2]
[351799217,1738792245239,-500.0,0.00013698,2]
[351799220,1738792245254,-2869.91,0.00013698,2]
[351799223,1738792245272,-201.90177402,0.00013698,2]
[351799225,1738792245289,-500.0,0.00013698,2]
[351799228,1738792245305,-500.0,0.00013698,2]
[351799231,1738792245322,-500.0,0.00013698,2]
[351799233,1738792245336,-622.6,0.00013698,2]
[351799236,1738792245352,-500.0,0.00013698,2]
[351799239,1738792245369,-500.0,0.00013698,2]
[351799242,1738792245382,-500.0,0.00013698,2]
[351799244,1738792245395,-500.0,0.00013698,2]
[351799247,1738792245409,-35102.76,0.00013698,2]
[351799249,1738792245424,-500.0,0.00013698,2]
[351799252,1738792245440,-500.0,0.00013698,2]
[351799255,1738792245457,-567.6,0.00013698,2]
[351799257,1738792245474,-211.74345682,0.00013698,2]
[351799260,1738792245487,-716.53,0.00013698,2]
[351799262,1738792245499,-500.0,0.00013698,2]
[351799265,1738792245514,-503.79388325,0.00013698,2]
[351799267,1738792245531,-321.82871719,0.00013698,2]
[351799269,1738792245543,-653.91,0.00013698,2]
[351799272,1738792245558,-500.0,0.00013698,2]
[351799274,1738792245571,-500.0,0.00013698,2]
[351799277,1738792245584,-628.58,0.00013698,2]
[351799279,1738792245598,-151.0,0.00013698,2]
[351799281,1738792245611,-826.06,0.00013698,2]
[351799284,1738792245624,-2528.05,0.00013698,2]
[351799286,1738792245638,-676.99,0.00013698,2]
[351799289,1738792245651,-500.0,0.00013698,2]
[351799291,1738792245664,-3532.03,0.00013698,2]
[351799293,1738792245677,-500.0,0.00013698,2]
[351799296,1738792245690,-500.0,0.00013698,2]
[351799298,1738792245702,-5637.47,0.00013698,2]
[351799300,1738792245716,-920.04,0.00013698,2]
[351799303,1738792245728,-500.0,0.00013698,2]
[351799305,1738792245741,-500.0,0.00013698,2]
[351799307,1738792245754,-501.50141218,0.00013698,2]
[351799310,1738792245770,-500.0,0.00013698,2]
[351799312,1738792245783,-500.0,0.00013698,2]
[351799315,1738792245797,-2656.38,0.00013698,2]
[351799317,1738792245810,-7469.48,0.00013698,2]
[351799319,1738792245824,-1138.25,0.00013698,2]
[351799322,1738792245836,-534.23,0.00013698,2]
[351799324,1738792245848,-500.0,0.00013698,2]
[351799326,1738792245861,-500.0,0.00013698,2]
[351799329,1738792245874,-3812.0,0.00013698,2]
[351799331,1738792245887,-3812.0,0.00013698,2]
[351799333,1738792245900,-3812.0,0.00013698,2]
[351799336,1738792245913,-3812.0,0.00013698,2]
[351799338,1738792245926,-3812.0,0.00013698,2]
[351799340,1738792245939,-500.0,0.00013698,2]
[351799343,1738792245951,-3812.0,0.00013698,2]
[351799345,1738792245965,-4303.7,0.00013698,2]
[351799347,1738792245977,-3812.0,0.00013698,2]
[351799350,1738792245991,-4303.7,0.00013698,2]
[351799352,1738792246005,-3812.0,0.00013698,2]
[351799355,1738792246018,-4303.7,0.00013698,2]
[351799357,1738792246033,-3812.0,0.00013698,2]
[351799359,1738792246046,-4303.7,0.00013698,2]
[351799361,1738792246060,-3812.0,0.00013698,2]
[351799364,1738792246076,-4303.7,0.00013698,2]
[351799366,1738792246090,-3812.0,0.00013698,2]
[351799369,1738792246104,-4303.7,0.00013698,2]
[351799371,1738792246120,-3812.0,0.00013698,2]
[351799374,1738792246134,-4303.7,0.00013698,2]
[351799376,1738792246147,-3812.0,0.00013698,2]
[351799379,1738792246161,-4303.7,0.00013698,2]
[351799381,1738792246174,-3812.0,0.00013698,2]
[351799383,1738792246188,-4303.7,0.00013698,2]
[351799386,1738792246200,-3812.0,0.00013698,2]
[351799388,1738792246213,-4303.7,0.00013698,2]
[351799391,1738792246227,-3812.0,0.00013698,2]
[351799393,1738792246239,-160.630029,0.00013698,2]
[351799395,1738792246252,-4303.7,0.00013698,2]
[351799398,1738792246265,-3812.0,0.00013698,2]
[351799400,1738792246278,-678.4,0.00013698,2]
[351799402,1738792246291,-4303.7,0.00013698,2]
[351799405,1738792246304,-3812.0,0.00013698,2]
[351799407,1738792246318,-500.0,0.00013698,2]
[351799410,1738792246332,-3812.0,0.00013698,2]
[351799412,1738792246346,-4303.7,0.00013698,2]
[351799415,1738792246360,-500.0,0.00013698,2]
[351799417,1738792246373,-3812.0,0.00013698,2]
[351799419,1738792246387,-4303.7,0.00013698,2]
[351799422,1738792246401,-3812.0,0.00013698,2]
[351799424,1738792246414,-4303.7,0.00013698,2]
[351799427,1738792246428,-500.0,0.00013698,2]
[351799429,1738792246441,-3812.0,0.00013698,2]
[351799431,1738792246455,-4303.7,0.00013698,2]
[351799434,1738792246467,-3812.0,0.00013698,2]
[351799436,1738792246481,-4303.7,0.00013698,2]
[351799439,1738792246494,-4303.7,0.00013698,2]
[351799441,1738792246507,-3812.18663276,0.00013698,2]
[351799443,1738792246520,-4303.7,0.00013698,2]
[351799446,1738792246532,-4303.7,0.00013698,2]
[351799448,1738792246546,-4303.7,0.00013698,2]
[351799450,1738792246559,-4303.7,0.00013698,2]
[351799452,1738792246568,-4303.7,0.00013698,2]
[351799454,1738792246578,-4303.80428907,0.00013698,2]
[351799456,1738792246588,-586.48,0.00013698,2]
[351799458,1738792246597,-500.0,0.00013698,2]
[351799460,1738792246607,-160.630029,0.00013698,2]
[351799472,1738792246617,-3879.29,0.00013698,2]
[351799475,1738792246861,-500.0,0.00013698,2]
[351799477,1738792246871,-500.0,0.00013698,2]
[351799479,1738792246880,-2561.91,0.00013698,2]
[351799481,1738792246889,-500.0,0.00013698,2]
[351799483,1738792246898,-111288.19,0.00013698,2]
[351799485,1738792246907,-581.83,0.00013698,2]
[351799487,1738792246916,-500.0,0.00013698,2]
[351799490,1738792246926,-500.0,0.00013698,2]
[351799492,1738792246935,-500.0,0.00013698,2]
[351799494,1738792246944,-2855.1,0.00013698,2]
[351799496,1738792246954,-500.0,0.00013698,2]
[351799498,1738792246963,-500.0,0.00013698,2]
[351799500,1738792246973,-500.0,0.00013698,2]
[351799501,1738792246983,-500.0,0.00013698,2]
[351799503,1738792246993,-540.91309947,0.00013698,2]
[351799505,1738792247003,-500.0,0.00013698,2]
[351799507,1738792247013,-500.0,0.00013698,2]
[351799509,1738792247023,-500.0,0.00013698,2]
[351799512,1738792247034,-4963.33,0.00013698,2]
[351799514,1738792247046,-500.0,0.00013698,2]
[351799516,1738792247056,-500.0,0.00013698,2]
[351799518,1738792247066,-500.0,0.00013698,2]
[351799520,1738792247077,-6939.28,0.00013698,2]
[351799522,1738792247087,-382.041907,0.00013698,2]
[351799524,1738792247098,-500.73042443,0.00013698,2]
[351799526,1738792247108,-500.0,0.00013698,2]
[351799528,1738792247120,-598.3233205,0.00013698,2]
[351799530,1738792247131,-500.0,0.00013698,2]
[351799532,1738792247141,-500.0,0.00013698,2]
[351799534,1738792247153,-500.0,0.00013698,2]
[351799536,1738792247164,-500.0,0.00013698,2]
[351799538,1738792247174,-153.94178851,0.00013698,2]
[351799540,1738792247185,-571.8211526,0.00013698,2]
[351799542,1738792247197,-500.0,0.00013698,2]
[351799544,1738792247208,-500.0,0.00013698,2]
[351799546,1738792247218,-2023.0366104,0.00013699,2]
[351799548,1738792247228,-373.615776,0.00013699,2]
[351799550,1738792247245,-151.899016,0.00013699,2]
[351799552,1738792247255,-201.6004606,0.00013699,2]
[351799554,1738792247267,-500.0,0.00013699,2]